fUST/lending_fUST_20250311
["ID","MTS","AMOUNT","RATE_DAILY","PERIOD"]
[355880583,1741675748471,-2000.0,0.000345,15]
[355880584,1741675748492,-1395.9895991,0.000349,2]
[355880585,1741675748512,-2000.0,0.00035,15]
[355880586,1741675748532,-2000.0,0.00035,15]
[355880587,1741675748554,-249.092763,0.0003589,2]
[355880588,1741675748574,-1000.0,0.00036,15]
[355880589,1741675748596,-282.35932361,0.000362,98]
[355880590,1741675748618,-282.35932357,0.000362,98]
[355880591,1741675748641,-5659.8251222,0.00037,30]
[355880592,1741675751080,-537.9507442,0.00037,30]
[355880593,1741675751100,-592.47673927,0.00037106,2]
[355880594,1741675751120,-277.74014797,0.00037235,2]
[355880595,1741675751139,-592.47673927,0.00037416,2]
[355880596,1741675751160,-592.47673929,0.0003768,2]
[355880597,1741675751182,-277.7401479,0.00038516,2]
[355880598,1741675751203,-282.35932357,0.00038753,113]
[355880599,1741675751226,-1000.0,0.00039,120]
[355880600,1741675751251,97.5383036,0.000349,2]
[355880601,1741675751279,-833.12142914,0.000349,2]
[355880631,1741675832767,-160.91084304,0.000399,2]
[355880632,1741675832777,-930.65973274,0.000399,2]
[355880633,1741675832786,-1000.0,0.00039938,2]
[355880634,1741675832795,-162.98,0.0003995,2]
[355880635,1741675832805,-162.98,0.0003995,2]
[355880636,1741675832814,-162.98,0.0003995,2]
[355880637,1741675832823,-162.98,0.0003995,2]
[355880638,1741675832832,-151.0,0.00039951,2]
[355880639,1741675832841,-600.0,0.00039951,2]
[355880640,1741675832851,-7712.89373216,0.0003998,3]
[355880641,1741675832860,-1561.48273072,0.0003998,3]
[355880642,1741675832869,-7593.79989891,0.0003999,3]
[355880643,1741675836294,7588.55809162,0.00026,3]
[355880644,1741675836318,2435.78693242,0.00026,3]
[355880650,1741675837999,-504.80570093,0.00039959,2]
[355880651,1741675838009,-588.52893888,0.00039959,31]
[355880652,1741675838019,-500.0,0.00039959,2]
[355880654,1741675838029,-504.80570093,0.00039959,2]
[355880656,1741675838038,-500.0,0.00039959,2]
[355880657,1741675838047,-504.80570093,0.00039959,2]
[355880659,1741675838057,-500.0,0.00039959,2]
[355880660,1741675838066,-504.80570093,0.00039959,2]
[355880661,1741675838075,-504.80570093,0.00039959,2]
[355880662,1741675838084,-500.0,0.00039959,2]
[355880663,1741675838093,-504.80570093,0.00039959,2]
[355880664,1741675838103,-500.0,0.00039959,2]
[355880665,1741675838112,-504.80570093,0.00039959,2]
[355880666,1741675838121,-504.80570093,0.00039959,2]
[355880667,1741675838130,-500.0,0.00039959,2]
[355880668,1741675838139,-504.80570093,0.00039959,2]
[355880669,1741675838148,-320.5958305,0.00039959,2]
[355880670,1741675838157,-504.80570093,0.00039959,2]
[355880671,1741675838166,-504.80570093,0.00039959,2]
[355880673,1741675838175,-504.80570093,0.00039959,2]
[355880675,1741675838185,-504.80570093,0.00039959,2]
[355880677,1741675838195,-504.80570093,0.00039959,2]
[355880678,1741675838204,-504.80570093,0.00039959,2]
[355880679,1741675838213,-504.80570093,0.00039959,2]
[355880680,1741675838222,-504.80570093,0.00039959,2]
[355880682,1741675838233,-504.80570093,0.00039959,2]
[355880683,1741675838245,-504.80570093,0.00039959,2]
[355880684,1741675838254,-504.80570093,0.00039959,2]
[355880685,1741675838263,-504.80570093,0.00039959,2]
[355880686,1741675838273,-504.80570093,0.00039959,2]
[355880687,1741675838283,-504.80570093,0.00039959,2]
[355880688,1741675838292,-504.80570093,0.00039959,2]
[355880689,1741675838302,-504.80570093,0.00039959,2]
[355880690,1741675838311,-504.80570093,0.00039959,2]
[355880691,1741675838321,-504.80570093,0.00039959,2]
[355880692,1741675838331,-504.80570093,0.00039959,2]
[355880693,1741675838340,-504.80570093,0.00039959,2]
[355880694,1741675838349,-504.80570093,0.00039959,2]
[355880695,1741675838358,-504.80570093,0.00039959,2]
[355880696,1741675838368,-646.04786337,0.00039959,31]
[355880697,1741675838377,-504.80570093,0.00039959,2]
[355880698,1741675838386,-504.80570093,0.00039959,2]
[355880699,1741675838396,-504.80570093,0.00039959,2]
[355880700,1741675838406,-504.80570093,0.00039959,2]
[355880701,1741675838415,-504.80570093,0.00039959,2]
[355880702,1741675838424,-504.80570093,0.00039959,2]
[355880703,1741675838433,-504.80570093,0.00039959,2]
[355880704,1741675838443,-504.80570093,0.00039959,2]
[355880705,1741675838453,-504.80570093,0.00039959,2]
[355880706,1741675838462,-504.80570093,0.00039959,2]
[355880707,1741675838471,-504.80570093,0.00039959,2]
[355880708,1741675838480,-504.80570093,0.00039959,2]
[355880709,1741675838490,-504.80570093,0.00039959,2]
[355880710,1741675838499,-504.80570093,0.00039959,2]
[355880711,1741675838509,-504.80570093,0.00039959,2]
[355880712,1741675838519,-504.80570093,0.00039959,2]
[355880713,1741675838670,-504.80570093,0.00039959,2]
[355880714,1741675838680,-504.80570093,0.00039959,2]
[355880715,1741675838690,-504.80570093,0.00039959,2]
[355880716,1741675838699,-504.80570093,0.00039959,2]
[355880717,1741675838709,-15544.88129759,0.0003999,3]
[355880718,1741675838718,-4684.44819216,0.0003999,3]
[355880719,1741675838727,-535.56778096,0.00039999,31]
[355880720,1741675838737,-191.85007565,0.00039999,31]
[355880721,1741675838747,-185.52834469,0.00039999,31]
[355880722,1741675838757,-386.03070016,0.00039999,31]
[355880723,1741675838767,-24000.0,0.0004,2]
[355880724,1741675838776,-4426.20435529,0.0004,120]
[355880725,1741675838786,-112369.81409608,0.0004,30]
[355880726,1741675838796,-151.54433336,0.0004,120]
[355880727,1741675838805,-206.75990476,0.0004,7]
[355880728,1741675838815,-283.61,0.0004,30]
[355880729,1741675838825,-1812.74358742,0.0004,15]
[355880730,1741675838835,-622.2,0.00040006,2]
[355880731,1741675838844,-645.2214,0.00040061,2]
[355880732,1741675838853,-669.0945918,0.00040116,2]
[355880733,1741675838863,-693.8510917,0.00040171,2]
[355880734,1741675838873,-719.52358209,0.00040226,2]
[355880735,1741675838883,-1250.0,0.0004024,120]
[355880736,1741675838892,-746.14595463,0.00040281,2]
[355880737,1741675838902,-247.79196183,0.00040499,2]
[355880738,1741675838912,-158.645115,0.00040572,30]
[355880739,1741675838921,-1250.0,0.00040862,120]
[355880740,1741675838931,-250.0,0.00040997,120]
[355880741,1741675838940,-1250.0,0.00040998,120]
[355880742,1741675838950,-180.0,0.00041,10]
[355880743,1741675838960,-180.0,0.00041,7]
[355880744,1741675838970,-178.20308903,0.00041,6]
[355880745,1741675838979,-6992.7387828,0.00041,120]
[355880746,1741675838989,-1000.0,0.00041,120]
[355880747,1741675838998,-160.8831074,0.00041,44]
[355880748,1741675839009,-1000.0,0.00041,120]
[355880749,1741675839018,-151.0,0.00041,12]
[355880750,1741675839028,-387.0,0.00041,14]
[355880751,1741675839037,-7712.89373216,0.00041063,3]
[355880752,1741675839046,-1561.48273072,0.00041063,3]
[355880753,1741675839055,-618.6049974,0.00041073,5]
[355880754,1741675839065,-500.0,0.00041073,5]
[355880755,1741675839074,-501.24900479,0.00041073,5]
[355880756,1741675839083,-500.0,0.00041073,5]
[355880757,1741675839093,-224.52057879,0.00041073,5]
[355880758,1741675839103,-502.59518066,0.00041073,5]
[355880759,1741675839113,-567.34905296,0.00041073,5]
[355880760,1741675839123,-500.0,0.00041073,5]
[355880761,1741675839133,-159.41205986,0.00041073,5]
[355880762,1741675839143,-500.0,0.00041073,5]
[355880763,1741675839152,-500.0,0.00041073,5]
[355880764,1741675839163,-500.0,0.00041073,5]
[355880765,1741675839172,-504.97635719,0.00041073,5]
[355880766,1741675839183,-503.29686904,0.00041073,5]
[355880767,1741675839192,-500.0,0.00041073,5]
[355880768,1741675839204,-278.33052093,0.00041073,5]
[355880769,1741675839213,-647.94541533,0.00041073,2]
[355880770,1741675839223,-500.0,0.00041073,5]
[355880771,1741675839233,-500.0,0.00041073,5]
[355880772,1741675839245,-500.0,0.00041073,5]
[355880773,1741675839254,-500.0,0.00041073,5]
[355880774,1741675839264,-500.0,0.00041073,5]
[355880775,1741675839274,-500.0,0.00041073,5]
[355880776,1741675839286,-500.0,0.00041073,5]
[355880777,1741675839297,-500.0,0.00041073,5]
[355880778,1741675839307,-500.0,0.00041073,5]
[355880779,1741675839319,-419.94782723,0.00041073,5]
[355880780,1741675839328,-15425.7874643,0.00041075,3]
[355880781,1741675839338,-3122.96546144,0.00041075,3]
[355880782,1741675839348,-160.0,0.00041085,3]
[355880783,1741675839359,-100267.618518,0.00041085,3]
[355880784,1741675839369,-20299.2754994,0.00041085,3]
[355880785,1741675839379,-1000.0,0.0004109,120]
[355880786,1741675839388,-342.04,0.0004109,120]
[355880787,1741675839398,-4386.860277,0.00041094,2]
[355880788,1741675839407,-173.29,0.00041094,2]
[355880789,1741675839416,-1000.0,0.00041094,2]
[355880790,1741675839426,-1000.0,0.00041094,2]
[355880791,1741675839435,-1000.0,0.00041094,2]
[355880792,1741675839446,-1000.0,0.00041094,2]
[355880793,1741675839455,-1000.0,0.00041094,2]
[355880794,1741675839465,-1000.0,0.00041094,2]
[355880795,1741675839476,-1000.0,0.00041094,2]
[355880796,1741675839486,-1000.0,0.00041094,2]
[355880797,1741675839496,-1000.0,0.00041094,2]
[355880798,1741675839505,-385.65854043,0.00041094,2]
[355880799,1741675839515,-500.0,0.00041095,120]
[355880800,1741675839525,-509.57971392,0.00041095,120]
[355880801,1741675839535,-151.0,0.00041095,14]
[355880802,1741675839544,-151.0,0.00041095,14]
[355880804,1741675839554,-151.0,0.00041095,14]
[355880805,1741675839563,-500.0,0.00041095,120]
[355880806,1741675839573,-505.88099795,0.00041095,120]
[355880807,1741675839583,-500.0,0.00041095,120]
[355880808,1741675839592,-519.94548565,0.00041095,2]
[355880809,1741675839602,-500.0,0.00041095,120]
[355880811,1741675839611,-500.0,0.00041095,120]
[355880812,1741675839621,-500.0,0.00041095,120]
[355880816,1741675839631,-500.0,0.00041095,120]
[355880819,1741675839640,-500.0,0.00041095,120]
[355880820,1741675839651,-500.0,0.00041095,120]
[355880822,1741675839661,-500.0,0.00041095,120]
[355880823,1741675839671,-500.0,0.00041095,120]
[355880824,1741675839680,-549.4,0.00041095,120]
[355880825,1741675839690,-639.64644162,0.00041095,120]
[355880826,1741675839700,-500.0,0.00041095,120]
[355880827,1741675839709,-507.50182075,0.00041095,120]
[355880828,1741675839719,-500.0,0.00041095,120]
[355880829,1741675839728,-220.79674614,0.00041095,120]
[355880830,1741675839738,-158.562682,0.00041095,14]
[355880832,1741675839747,-500.0,0.00041095,120]
[355880834,1741675839757,-500.0,0.00041095,120]
[355880836,1741675839767,-500.0,0.00041095,120]
[355880837,1741675839779,-500.0,0.00041095,120]
[355880838,1741675839789,-500.0,0.00041095,120]
[355880839,1741675839799,-500.0,0.00041095,120]
[355880840,1741675839810,-500.0,0.00041095,120]
[355880841,1741675839820,-500.0,0.00041095,120]
[355880842,1741675839830,-500.0,0.00041095,120]
[355880843,1741675839840,-152.221341,0.00041095,14]
[355880844,1741675839850,-500.0,0.00041095,120]
[355880845,1741675839861,-500.0,0.00041095,120]
[355880846,1741675839871,-500.0,0.00041095,120]
[355880847,1741675839881,-500.0,0.00041095,120]
[355880848,1741675839891,-500.0,0.00041095,120]
[355880849,1741675839900,-500.0,0.00041095,120]
[355880850,1741675839911,-500.0,0.00041095,120]
[355880851,1741675839920,-500.0,0.00041095,120]
[355880852,1741675839930,-500.0,0.00041095,120]
[355880853,1741675839940,-500.0,0.00041095,120]
[355880854,1741675839949,-171.8669828,0.00041095,120]
[355880855,1741675839959,-500.35772713,0.00041095,120]
[355880856,1741675839969,-500.0,0.00041095,120]
[355880857,1741675839978,-549.89586002,0.00041095,120]
[355880858,1741675839988,-151.0,0.00041095,14]
[355880859,1741675839999,-523.40841102,0.00041095,120]
[355880860,1741675840010,-151.0,0.00041095,14]
[355880861,1741675840020,-151.0,0.00041095,14]
[355880862,1741675840031,-500.0,0.00041095,120]
[355880863,1741675840042,-500.0,0.00041095,120]
[355880864,1741675840052,-500.0,0.00041095,120]
[355880865,1741675840061,-500.0,0.00041095,120]
[355880866,1741675840070,-500.0,0.00041095,120]
[355880868,1741675840080,-500.0,0.00041095,120]
[355880869,1741675840089,-509.01283296,0.00041095,120]
[355880870,1741675840099,-500.0,0.00041095,30]
[355880871,1741675840109,-500.0,0.00041095,120]
[355880872,1741675840119,-155.522932,0.00041095,14]
[355880873,1741675840128,-500.0,0.00041095,120]
[355880874,1741675840137,-500.0,0.00041095,120]
[355880875,1741675840147,-759.21,0.00041095,120]
[355880876,1741675840157,-500.0,0.00041095,120]
[355880877,1741675840167,-411.279266,0.00041095,14]
[355880878,1741675840176,-411.279266,0.00041095,14]
[355880879,1741675840186,-547.20015439,0.00041095,120]
[355880880,1741675840196,-500.0,0.00041095,120]
[355880881,1741675840206,-500.0,0.00041095,120]
[355880882,1741675840215,-411.279266,0.00041095,14]
[355880883,1741675840225,-411.279266,0.00041095,14]
[355880885,1741675840236,-500.0,0.00041095,120]
[355880886,1741675840247,-500.0,0.00041095,120]
[355880887,1741675840256,-639.25,0.00041095,120]
[355880888,1741675840265,-500.0,0.00041095,120]
[355880889,1741675840275,-500.0,0.00041095,120]
[355880890,1741675840285,-935.72,0.00041095,120]
[355880891,1741675840294,-569.90161254,0.00041095,120]
[355880892,1741675840305,-696.97,0.00041095,7]
[355880893,1741675840315,-500.0,0.00041095,120]
[355880894,1741675840325,-699.01,0.00041095,120]
[355880895,1741675840334,-509.33835445,0.00041095,120]
[355880896,1741675840343,-500.0,0.00041095,120]
[355880897,1741675840353,-500.0,0.00041095,120]
[355880898,1741675840362,-500.0,0.00041095,120]
[355880899,1741675840372,-500.0,0.00041095,120]
[355880900,1741675840382,-500.0,0.00041095,120]
[355880901,1741675840391,-515.9236474,0.00041095,120]
[355880902,1741675840402,-502.99,0.00041095,120]
[355880903,1741675840412,-539.90438903,0.00041095,120]
[355880904,1741675840421,-500.0,0.00041095,120]
[355880905,1741675840431,-826.72,0.00041095,120]
[355880906,1741675840440,-186.46132997,0.00041095,120]
[355880907,1741675840450,-509.14347711,0.00041095,120]
[355880908,1741675840459,-500.0,0.00041095,2]
[355880909,1741675840468,-500.0,0.00041095,2]
[355880910,1741675840478,-500.0,0.00041095,2]
[355880911,1741675840487,-500.0,0.00041095,2]
[355880912,1741675840497,-500.0,0.00041095,2]
[355880913,1741675840506,-408.11893395,0.00041095,2]
[355880914,1741675840515,-480.91535323,0.00041095,120]
[355880915,1741675840524,-558.71216247,0.00041095,120]
[355880916,1741675840535,-500.0,0.00041095,120]
[355880917,1741675840544,-474.44828635,0.00041095,120]
[355880918,1741675840553,-500.0,0.00041095,120]
[355880919,1741675840562,-500.0,0.00041095,120]
[355880920,1741675840571,-500.0,0.00041095,120]
[355880921,1741675840581,-500.0,0.00041095,120]
[355880922,1741675840590,-1135.07,0.00041095,120]
[355880923,1741675840599,-500.0,0.00041095,120]
[355880924,1741675840609,-505.95809519,0.00041095,120]
[355880925,1741675840618,-500.0,0.00041095,120]
[355880926,1741675840628,-500.0,0.00041095,120]
[355880927,1741675840637,-500.0,0.00041095,120]
[355880928,1741675840646,-500.0,0.00041095,120]
[355880929,1741675840656,-763.61,0.00041095,120]
[355880930,1741675840665,-500.0,0.00041095,120]
[355880931,1741675840674,-500.0,0.00041095,120]
[355880932,1741675840683,-500.0,0.00041095,120]
[355880933,1741675840693,-500.0,0.00041095,120]
[355880934,1741675840702,-500.0,0.00041095,120]
[355880935,1741675840711,-500.0,0.00041095,120]
[355880936,1741675840721,-500.0,0.00041095,120]
[355880937,1741675840730,-500.0,0.00041095,120]
[355880938,1741675840740,-291.63375938,0.00041095,120]
[355880939,1741675840749,-500.0,0.00041095,120]
[355880940,1741675840758,-500.0,0.00041095,120]
[355880941,1741675840885,-389.242103,0.00041095,14]
[355880942,1741675840895,-389.242103,0.00041095,14]
[355880943,1741675840904,-389.242103,0.00041095,14]
[355880944,1741675840914,-500.0,0.00041095,120]
[355880945,1741675840923,-780.092016,0.00041095,14]
[355880946,1741675840932,-780.092016,0.00041095,14]
[355880947,1741675840942,-500.0,0.00041095,120]
[355880948,1741675840951,-389.242103,0.00041095,14]
[355880949,1741675840961,-389.242103,0.00041095,14]
[355880950,1741675840970,-389.242103,0.00041095,14]
[355880951,1741675840979,-780.092016,0.00041095,14]
[355880952,1741675840989,-531.41358287,0.00041095,120]
[355880953,1741675840998,-780.092016,0.00041095,14]
[355880954,1741675841007,-500.0,0.00041095,120]
[355880955,1741675841016,-507.27986423,0.00041095,120]
[355880956,1741675841026,-151.0,0.00041095,14]
[355880957,1741675841035,-154.548024,0.00041095,14]
[355880958,1741675841044,-151.0,0.00041095,14]
[355880959,1741675841053,-500.0,0.00041095,120]
[355880960,1741675841063,-151.0,0.00041095,14]
[355880961,1741675841073,-500.0,0.00041095,120]
[355880962,1741675841082,-500.0,0.00041095,120]
[355880963,1741675841091,-525.03036861,0.00041095,120]
[355880964,1741675841100,-500.0,0.00041095,120]
[355880965,1741675841110,-500.0,0.00041095,120]
[355880966,1741675841119,-500.0,0.00041095,120]
[355880967,1741675841128,-505.59575618,0.00041095,120]
[355880968,1741675841138,-240.1451973,0.00041095,120]
[355880969,1741675841147,-500.0,0.00041095,120]
[355880970,1741675841156,-151.0,0.00041095,14]
[355880971,1741675841166,-151.0,0.00041095,14]
[355880972,1741675841176,-243.743443,0.00041095,14]
[355880973,1741675841185,-548.39188292,0.00041095,120]
[355880974,1741675841194,-500.0,0.00041095,120]
[355880975,1741675841204,-500.0,0.00041095,2]
[355880976,1741675841213,-500.0,0.00041095,120]
[355880977,1741675841222,-500.0,0.00041095,120]
[355880978,1741675841232,-328.31390015,0.00041095,120]
[355880979,1741675841242,-500.0,0.00041095,2]
[355880980,1741675841252,-500.0,0.00041095,120]
[355880981,1741675841261,-500.0,0.00041095,120]
[355880982,1741675841271,-500.0,0.00041095,5]
[355880983,1741675841281,-500.0,0.00041095,120]
[355880984,1741675841290,-568.87,0.00041095,120]
[355880985,1741675841299,-500.0,0.00041095,2]
[355880986,1741675841309,-500.0,0.00041095,120]
[355880987,1741675841321,-509.14459648,0.00041095,14]
[355880988,1741675841330,-533.96,0.00041095,120]
[355880989,1741675841340,-500.0,0.00041095,120]
[355880990,1741675841349,-534.72033864,0.00041095,120]
[355880991,1741675841358,-527.407123,0.00041095,120]
[355880992,1741675841368,-500.0,0.00041095,2]
[355880993,1741675841377,-500.0,0.00041095,2]
[355880994,1741675841386,-500.0,0.00041095,2]
[355880995,1741675841395,-500.0,0.00041095,120]
[355880996,1741675841404,-500.0,0.00041095,2]
[355880997,1741675841413,-629.75,0.00041095,120]
[355880998,1741675841422,-500.0,0.00041095,2]
[355880999,1741675841431,-500.0,0.00041095,2]
[355881000,1741675841440,-587.82,0.00041095,120]
[355881001,1741675841449,-500.0,0.00041095,2]
[355881002,1741675841458,-500.0,0.00041095,120]
[355881003,1741675841467,-500.0,0.00041095,2]
[355881004,1741675841476,-503.28847715,0.00041095,120]
[355881005,1741675841486,-626.84,0.00041095,120]
[355881006,1741675841494,-500.0,0.00041095,120]
[355881007,1741675841503,-500.0,0.00041095,120]
[355881008,1741675841512,-500.0,0.00041095,120]
[355881009,1741675841521,-500.0,0.00041095,120]
[355881010,1741675841532,-500.0,0.00041095,120]
[355881011,1741675841541,-503.92244001,0.00041095,120]
[355881012,1741675841551,-1666.41,0.00041095,120]
[355881013,1741675841560,-542.11338,0.00041095,120]
[355881014,1741675841570,-1535.53,0.00041095,120]
[355881015,1741675841579,-500.0,0.00041095,120]
[355881016,1741675841589,-504.44,0.00041095,120]
[355881017,1741675841598,-500.0,0.00041095,120]
[355881018,1741675841608,-528.47492931,0.00041095,120]
[355881019,1741675841617,-500.0,0.00041095,120]
[355881020,1741675841626,-762.24,0.00041095,120]
[355881021,1741675841636,-500.0,0.00041095,120]
[355881022,1741675841645,-500.0,0.00041095,120]
[355881023,1741675841655,-914.95,0.00041095,120]
[355881024,1741675841664,-500.0,0.00041095,120]
[355881025,1741675841673,-500.0,0.00041095,120]
[355881026,1741675841682,-924.22,0.00041095,120]
[355881027,1741675841694,-500.0,0.00041095,120]
[355881028,1741675841703,-570.94,0.00041095,120]
[355881029,1741675841713,-515.68810336,0.00041095,120]
[355881030,1741675841722,-500.0,0.00041095,120]
[355881031,1741675841732,-508.78,0.00041095,120]
[355881032,1741675841741,-500.0,0.00041095,120]
[355881033,1741675841752,-464.1565275,0.00041095,120]
[355881034,1741675841762,-500.0,0.00041095,120]
[355881035,1741675841772,-500.0,0.00041095,120]
[355881036,1741675841782,-305.20605065,0.00041095,120]
[355881037,1741675841792,-511.43015559,0.00041095,120]
[355881038,1741675841803,-500.0,0.00041095,120]
[355881039,1741675841813,-4844.08841663,0.00041095,2]
[355881040,1741675841823,-500.0,0.00041095,120]
[355881041,1741675841832,-192.43713899,0.00041095,120]
[355881042,1741675841841,-500.0,0.00041095,120]
[355881043,1741675841851,-500.0,0.00041095,120]
[355881044,1741675841860,-560.6,0.00041095,120]
[355881045,1741675841870,-628.59,0.00041095,120]
[355881046,1741675841879,-303.928558,0.00041095,14]
[355881047,1741675841889,-303.928558,0.00041095,14]
[355881048,1741675841898,-500.0,0.00041095,120]
[355881049,1741675841907,-539.91,0.00041095,120]
[355881050,1741675841917,-500.0,0.00041095,120]
[355881051,1741675841926,-505.37392727,0.00041095,120]
[355881052,1741675841936,-500.0,0.00041095,120]
[355881053,1741675841945,-303.928558,0.00041095,14]
[355881054,1741675841954,-303.928558,0.00041095,14]
[355881055,1741675841963,-1232.25,0.00041095,120]
[355881056,1741675841973,-500.0,0.00041095,120]
[355881057,1741675841982,-953.31,0.00041095,120]
[355881058,1741675841991,-502.88,0.00041095,120]
[355881059,1741675842000,-500.0,0.00041095,120]
[355881060,1741675842010,-839.245936,0.00041095,14]
[355881061,1741675842019,-839.245936,0.00041095,14]
[355881062,1741675842028,-839.245936,0.00041095,14]
[355881063,1741675842038,-500.0,0.00041095,120]
[355881064,1741675842047,-500.0,0.00041095,120]
[355881065,1741675842057,-839.245936,0.00041095,14]
[355881066,1741675842066,-839.245936,0.00041095,14]
[355881067,1741675842075,-839.245936,0.00041095,14]
[355881068,1741675842085,-151.0,0.00041095,14]
[355881069,1741675842094,-983.6,0.00041095,120]
[355881070,1741675842103,-151.0,0.00041095,14]
[355881071,1741675842112,-151.0,0.00041095,14]
[355881072,1741675842122,-500.0,0.00041095,120]
[355881073,1741675842131,-500.0,0.00041095,120]
[355881074,1741675842140,-500.0,0.00041095,120]
[355881075,1741675842150,-871.01,0.00041095,120]
[355881076,1741675842160,-500.0,0.00041095,120]
[355881077,1741675842169,-755.7,0.00041095,120]
[355881078,1741675842178,-500.0,0.00041095,120]
[355881079,1741675842187,-930.07,0.00041095,120]
[355881080,1741675842197,-500.0,0.00041095,120]
[355881081,1741675842206,-814.86,0.00041095,120]
[355881082,1741675842216,-500.0,0.00041095,120]
[355881083,1741675842226,-917.55,0.00041095,120]
[355881084,1741675842238,-510.40137362,0.00041095,120]
[355881085,1741675842248,-500.0,0.00041095,120]
[355881086,1741675842258,-500.0,0.00041095,120]
[355881087,1741675842267,-500.0,0.00041095,120]
[355881088,1741675842278,-500.0,0.00041095,120]
[355881089,1741675842288,-1987.03,0.00041095,15]
[355881090,1741675842297,-648.06,0.00041095,120]
[355881091,1741675842307,-914.74,0.00041095,120]
[355881092,1741675842316,-772.9,0.00041095,120]
[355881093,1741675842326,-500.0,0.00041095,120]
[355881094,1741675842335,-500.0,0.00041095,120]
[355881095,1741675842345,-1994.38,0.00041095,120]
[355881096,1741675842354,-500.0,0.00041095,120]
[355881097,1741675842364,-500.0,0.00041095,120]
[355881098,1741675842374,-500.0,0.00041095,35]
[355881099,1741675842383,-500.0,0.00041095,120]
[355881101,1741675842392,-151.0,0.00041095,14]
[355881102,1741675842402,-151.0,0.00041095,14]
[355881103,1741675842412,-151.0,0.00041095,14]
[355881104,1741675842422,-500.0,0.00041095,120]
[355881105,1741675842431,-151.0,0.00041095,14]
[355881106,1741675842441,-1433.03,0.00041095,120]
[355881107,1741675842450,-532.12299,0.00041095,120]
[355881108,1741675842460,-500.0,0.00041095,120]
[355881109,1741675842469,-508.56311053,0.00041095,120]
[355881110,1741675842479,-500.0,0.00041095,120]
[355881111,1741675842488,-151.0,0.00041095,14]
[355881112,1741675842497,-151.0,0.00041095,14]
[355881113,1741675842507,-509.18,0.00041095,120]
[355881114,1741675842516,-500.0,0.00041095,120]
[355881115,1741675842526,-151.0,0.00041095,14]
[355881116,1741675842538,-151.0,0.00041095,14]
[355881117,1741675842547,-500.0,0.00041095,120]
[355881118,1741675842556,-683.767148,0.00041095,14]
[355881119,1741675842566,-683.767148,0.00041095,14]
[355881120,1741675842575,-500.0,0.00041095,120]
[355881121,1741675842585,-500.0,0.00041095,120]
[355881122,1741675842594,-557.8185406,0.00041095,120]
[355881123,1741675842603,-683.767148,0.00041095,14]
[355881124,1741675842613,-500.0,0.00041095,120]
[355881125,1741675842623,-683.767148,0.00041095,14]
[355881126,1741675842632,-500.0,0.00041095,30]
[355881127,1741675842642,-500.0,0.00041095,120]
[355881128,1741675842651,-683.767148,0.00041095,14]
[355881129,1741675842660,-683.767148,0.00041095,14]
[355881130,1741675842670,-500.0,0.00041095,120]
[355881131,1741675842680,-500.0,0.00041095,120]
[355881132,1741675842690,-500.0,0.00041095,120]
[355881133,1741675842700,-500.0,0.00041095,120]
[355881134,1741675842710,-500.0,0.00041095,120]
[355881135,1741675842719,-1111.03,0.00041095,120]
[355881136,1741675842729,-500.0,0.00041095,120]
[355881137,1741675842738,-438.96340615,0.00041095,120]